bitfinex/quotes_BTCUSD_20240821
["timestamp","ask_amount","ask_price","bid_price","bid_amount"]
[1724203605658,0.00774534,59106.0,59105.0,0.3009]
[1724203605884,0.00774534,59106.0,59105.0,0.2134]
[1724203607143,0.00774534,59106.0,59103.0,0.2977]
[1724203607144,0.00774534,59106.0,59097.0,0.2977]
[1724203607976,0.00774534,59106.0,59096.0,0.14486]
[1724203608400,0.00774534,59106.0,59097.0,0.1]
[1724203608609,0.00774534,59106.0,59097.0,0.17040698]
[1724203608820,0.00774534,59106.0,59097.0,0.46810698]
[1724203609033,0.00774534,59106.0,59098.0,0.00338358]
[1724203609239,0.00774534,59106.0,59097.0,0.43166]
[1724203609666,0.00774534,59106.0,59097.0,0.55404618]
[1724203610083,0.00774534,59106.0,59098.0,0.03734358]
[1724203612743,0.00774534,59106.0,59098.0,0.03396]
[1724203613624,0.0889,59115.0,59097.0,0.3977]
[1724203613625,0.0982336,59131.0,59106.0,0.001]
[1724203613832,0.0982336,59131.0,59100.0,0.2977]
[1724203613833,0.0982336,59131.0,59118.0,0.4944]
[1724203614046,0.0117336,59131.0,59118.0,0.52232996]
[1724203614271,0.0117336,59131.0,59118.0,0.62232996]
[1724203614694,0.0117336,59131.0,59118.0,0.65628996]
[1724203615531,0.0117336,59131.0,59118.0,0.65228996]
[1724203615734,0.0117336,59131.0,59118.0,0.65628996]
[1724203615944,0.0117336,59131.0,59118.0,0.72191896]
[1724203619292,0.0117336,59131.0,59118.0,0.22351896]
[1724203619497,0.0117336,59131.0,59118.0,0.45897213]
[1724203619498,0.2066,59127.0,59118.0,0.45897213]
[1724203619707,0.0117336,59131.0,59118.0,0.46097213]
[1724203619907,0.0117336,59131.0,59118.0,0.57037213]
[1724203620239,0.0117336,59131.0,59118.0,0.58057552]
[1724203620447,0.0117336,59131.0,59118.0,0.24474217]
[1724203620678,0.1994,59119.0,59114.0,0.03396]
[1724203621033,0.00970757,59118.0,59114.0,0.03396]
[1724203621656,0.00970757,59118.0,59112.0,0.2977]
[1724203621657,0.00970757,59118.0,59115.0,0.03396]
[1724203622696,0.00970757,59118.0,59116.0,0.03396]
[1724203623667,0.00970757,59118.0,59113.0,0.10338288]
[1724203623668,0.00970757,59118.0,59114.0,0.03396]
[1724203623997,0.00970757,59118.0,59115.0,0.00338277]
[1724203624175,0.00970757,59118.0,59115.0,0.03734277]
[1724203625431,0.00970757,59118.0,59115.0,0.15374277]
[1724203626131,0.00970757,59118.0,59117.0,0.00092996]
[1724203626347,0.0002,59119.0,59117.0,0.03396]
[1724203626493,0.0002,59119.0,59118.0,0.33166]
[1724203627081,0.211,59119.0,59114.0,0.03396]
[1724203627525,0.00969308,59118.0,59114.0,0.03396]
[1724203628509,0.00969308,59118.0,59113.0,0.1]
[1724203628510,0.00969308,59118.0,59108.0,0.03396]
[1724203628707,0.107,59117.0,59108.0,0.03396]
[1724203628911,0.00967987,59116.0,59108.0,0.03396]
[1724203629573,0.00967987,59116.0,59109.0,0.034862]
[1724203630198,0.00967987,59116.0,59113.0,0.03396]
[1724203630392,0.09362,59119.0,59113.0,0.0373429]
[1724203630706,0.00102,59119.0,59118.0,0.2977]
[1724203631118,0.00102,59119.0,59113.0,0.03396]
[1724203631325,0.00102,59119.0,59113.0,0.03734292]
[1724203631586,0.00102,59119.0,59113.0,0.03396]
[1724203631812,0.1087,59118.0,59113.0,0.03396]
[1724203634348,0.1087,59118.0,59113.0,0.0672162]
[1724203635444,0.1087,59118.0,59113.0,0.03396]
[1724203636101,0.00102,59119.0,59113.0,0.03396]
[1724203643962,0.00102,59119.0,59113.0,0.03734293]
[1724203644169,0.00102,59119.0,59118.0,0.41682996]
[1724203644383,0.00102,59119.0,59118.0,0.57378996]
[1724203644629,0.00822,59123.0,59122.0,0.24458996]
[1724203644825,0.0117336,59131.0,59130.0,0.4159]
[1724203645033,0.0117336,59131.0,59130.0,0.3977]
[1724203645237,0.0117336,59131.0,59130.0,0.452779]
[1724203645998,0.0117336,59131.0,59130.0,0.3977]
[1724203650080,0.0117336,59131.0,59123.0,0.33166]
[1724203650081,0.2143336,59131.0,59123.0,0.33166]
[1724203650284,0.2143336,59131.0,59125.0,0.03396]
[1724203650661,0.00972045,59130.0,59125.0,0.03396]
[1724203654606,0.01054045,59130.0,59125.0,0.03396]
[1724203658160,0.01054045,59130.0,59129.0,0.2977]
[1724203662407,0.01054045,59130.0,59125.0,0.03396]
[1724203662764,0.00082,59130.0,59125.0,0.03396]
[1724203664809,0.0891,59128.0,59124.0,0.1]
[1724203665146,0.00974336,59127.0,59124.0,0.1]
[1724203667331,0.01056336,59127.0,59124.0,0.1]
[1724203667956,0.01056336,59127.0,59125.0,0.1175]
[1724203668334,0.00082,59127.0,59125.0,0.1175]
[1724203668604,0.00082,59127.0,59126.0,0.00092996]
[1724203668775,0.00082,59127.0,59126.0,0.2479721]
[1724203668962,0.00082,59127.0,59126.0,0.24458996]
[1724203669164,0.00082,59127.0,59126.0,0.30306647]
[1724203669767,0.00082,59127.0,59126.0,0.30506647]
[1724203669974,0.00082,59127.0,59126.0,0.30306647]
[1724203670777,0.00082,59127.0,59126.0,0.30644831]
[1724203670979,0.00082,59127.0,59126.0,0.30844831]
[1724203671185,0.00082,59127.0,59126.0,0.42284831]
[1724203671610,0.00082,59127.0,59126.0,0.42484831]
[1724203671817,0.00082,59127.0,59126.0,0.47549788]
[1724203672021,0.00082,59127.0,59126.0,0.42484831]
[1724203674139,0.00822,59136.0,59135.0,0.00092996]
[1724203674340,0.00822,59136.0,59135.0,0.43741148]
[1724203674512,0.01796378,59136.0,59135.0,0.43741148]
[1724203674714,0.00822,59136.0,59135.0,0.57137148]
[1724203674928,0.00822,59136.0,59135.0,0.63478699]
[1724203675805,0.00821,59166.0,59135.0,0.63478699]
[1724203675806,0.00821,59166.0,59152.0,0.0856]
[1724203675807,0.49229154,59163.0,59152.0,0.0856]
[1724203676001,0.60179154,59163.0,59157.0,0.2977]
[1724203676177,0.49229154,59163.0,59157.0,0.33166]
[1724203676384,0.00821,59166.0,59157.0,0.499569]
[1724203676531,0.00821,59166.0,59157.0,0.476569]
[1724203676737,0.00821,59166.0,59157.0,0.43166]
[1724203676965,0.0891,59160.0,59157.0,0.43166]
[1724203677338,0.0891,59164.0,59157.0,0.43166]
[1724203678346,0.11501,59159.0,59157.0,0.43166]
[1724203682846,0.11501,59159.0,59153.0,0.03396]
[1724203683051,0.1103,59156.0,59153.0,0.03396]
[1724203683453,0.0901,59157.0,59153.0,0.03396]
[1724203683850,0.0901,59157.0,59152.0,0.03396]
[1724203684254,0.0901,59157.0,59152.0,0.03734078]
[1724203684814,0.0901,59157.0,59152.0,0.03396]
[1724203685227,0.112,59156.0,59152.0,0.03396]
[1724203688967,0.00882922,59155.0,59152.0,0.03396]
[1724203690882,0.00882922,59155.0,59145.0,0.2977]
[1724203691102,0.1029,59154.0,59144.0,0.4771]
[1724203691265,0.00841,59159.0,59136.0,0.4771]
[1724203691266,0.1029,59152.0,59136.0,0.4771]
[1724203691466,0.0879,59149.0,59136.0,0.4771]
[1724203691669,0.1029,59147.0,59136.0,0.4771]
[1724203691895,0.1029,59147.0,59137.0,0.03396]
[1724203693205,0.08566117,59146.0,59137.0,0.03396]
[1724203693460,0.084,59146.0,59137.0,0.13396]
[1724203693682,0.00877321,59145.0,59137.0,0.13396]
[1724203694488,0.1025,59142.0,59133.0,0.00020357]
[1724203694709,0.1908,59140.0,59133.0,0.00020357]
[1724203695030,0.1869,59138.0,59133.0,0.00020357]
[1724203695207,0.10386117,59137.0,59133.0,0.00020357]
[1724203695432,0.11261641,59137.0,59133.0,0.00020357]
[1724203696352,0.11095524,59137.0,59133.0,0.00020357]
[1724203698969,0.1091,59135.0,59133.0,0.00020357]
[1724203699092,0.08436117,59134.0,59133.0,0.00020357]
[1724203699495,0.0827,59134.0,59133.0,0.00020357]
[1724203699704,0.09142606,59134.0,59133.0,0.00020357]
[1724203703283,0.09142606,59134.0,59133.0,0.00110667]
[1724203705780,0.09308723,59134.0,59133.0,0.00110667]
[1724203705977,0.20268723,59134.0,59133.0,0.00110667]
[1724203707429,0.20102606,59134.0,59133.0,0.00110667]
[1724203708608,0.00872606,59134.0,59133.0,0.00110667]
[1724203708944,0.00166117,59137.0,59133.0,0.00110667]
[1724203709497,0.0097173,59136.0,59133.0,0.00110667]
[1724203710559,0.1045,59135.0,59133.0,0.00110667]
[1724203710766,0.11422873,59135.0,59133.0,0.00110667]
[1724203714017,0.00166117,59134.0,59133.0,0.00110667]
[1724203714359,0.01137795,59134.0,59133.0,0.00110667]
[1724203714492,0.22278575,59134.0,59133.0,0.00110667]
[1724203714856,0.20297795,59134.0,59133.0,0.00110667]
[1724203715219,0.40297795,59134.0,59133.0,0.00110667]
[1724203718236,0.20297795,59134.0,59133.0,0.00110667]
[1724203718438,0.20131678,59134.0,59133.0,0.00110667]
[1724203721719,0.00971678,59134.0,59133.0,0.00110667]
[1724203721911,0.0828,59137.0,59133.0,0.00110667]
[1724203722370,0.0113513,59136.0,59133.0,0.00110667]
[1724203723088,0.00969013,59136.0,59133.0,0.00110667]
[1724203729024,0.00969013,59136.0,59134.0,0.0828]
[1724203729234,0.0886,59145.0,59134.0,0.0828]
[1724203729235,0.0886,59145.0,59135.0,0.04850067]
[1724203729441,0.103021,59146.0,59135.0,0.04850067]
[1724203729442,0.000821,59146.0,59138.0,0.2977]
[1724203729649,0.00970118,59144.0,59138.0,0.2977]
[1724203729856,0.000821,59146.0,59139.0,0.1135]
[1724203730063,0.00970118,59143.0,59140.0,0.04112]
[1724203730266,0.000821,59146.0,59140.0,0.04112]
[1724203731512,0.000821,59146.0,59139.0,0.1135]
[1724203733118,0.000821,59146.0,59144.0,0.2977]
[1724203733325,0.000821,59146.0,59145.0,0.1032]
[1724203738173,0.00061751,59146.0,59145.0,0.1032]
[1724203739916,0.00061751,59146.0,59140.0,0.1874]
[1724203740702,0.00061751,59146.0,59141.0,0.051906]
[1724203740903,0.00061751,59146.0,59140.0,0.1874]
[1724203741103,0.00061751,59146.0,59138.0,0.33166]
[1724203741104,0.08501751,59146.0,59138.0,0.33166]
[1724203741310,0.008747,59145.0,59138.0,0.33166]
[1724203742610,0.008747,59145.0,59138.0,0.03396]
[1724203742809,0.008747,59145.0,59136.0,0.1954]
[1724203743048,0.08501751,59146.0,59136.0,0.1954]
[1724203743460,0.08501751,59146.0,59136.0,0.24819631]
[1724203743659,0.00166117,59145.0,59136.0,0.1954]
[1724203743865,0.00166117,59145.0,59136.0,0.109]
[1724203745742,0.08501751,59146.0,59136.0,0.14296]
[1724203746087,0.08501751,59146.0,59136.0,0.109]
[1724203746295,0.08501751,59146.0,59137.0,0.04834631]
[1724203747115,0.00061751,59146.0,59139.0,0.22606]
[1724203747367,0.00061751,59146.0,59139.0,0.1954815]
[1724203747568,0.00061751,59146.0,59144.0,0.2977]
[1724203747782,0.00061751,59146.0,59145.0,0.1022]
[1724203752040,0.00061751,59146.0,59141.0,0.03396]
[1724203752257,0.00061751,59146.0,59140.0,0.13396]
[1724203753323,0.1917,59145.0,59140.0,0.13396]
[1724203753545,0.1917,59145.0,59140.0,0.03396]
[1724203753758,0.00984396,59144.0,59140.0,0.03396]
[1724203753958,0.00956496,59144.0,59140.0,0.03396]
[1724203754401,0.00956496,59144.0,59139.0,0.1]
[1724203756099,0.00956496,59144.0,59139.0,0.15551853]
[1724203756306,0.00956496,59144.0,59140.0,0.11298153]
[1724203756504,0.00061751,59146.0,59141.0,0.1]
[1724203756633,0.00061751,59146.0,59142.0,0.00338113]
[1724203756838,0.00061751,59146.0,59145.0,0.1096]
[1724203757072,0.00061751,59146.0,59145.0,0.11298106]
[1724203757272,0.08508542,59157.0,59145.0,0.11298106]
[1724203757438,0.08508542,59157.0,59146.0,0.0557301]
[1724203757616,0.00955812,59156.0,59147.0,0.00338103]
[1724203759482,0.00955812,59156.0,59147.0,0.01334616]
[1724203759688,0.00955812,59156.0,59146.0,0.0557301]
[1724203759898,0.00955812,59156.0,59147.0,0.00338101]
[1724203760113,0.00955812,59156.0,59147.0,0.05902212]
[1724203760517,0.00955812,59156.0,59147.0,0.06002212]
[1724203760726,0.08508542,59157.0,59147.0,0.06002212]
[1724203762089,0.08508542,59157.0,59152.0,0.2977]
[1724203762496,0.00821,59158.0,59153.0,0.1021]
[1724203762912,0.00821,59158.0,59152.0,0.2977]
[1724203762913,0.00956569,59157.0,59152.0,0.2977]
[1724203763118,0.1113,59156.0,59147.0,0.001]
[1724203763290,0.1113,59156.0,59147.0,0.1]
[1724203763509,0.1113,59156.0,59152.0,0.002]
[1724203763943,0.00958826,59155.0,59152.0,0.002]
[1724203764121,0.00958826,59155.0,59147.0,0.1]
[1724203764306,0.00958826,59155.0,59147.0,0.103]
[1724203764445,0.1113,59156.0,59147.0,0.103]
[1724203765983,0.1113,59156.0,59147.0,0.16329995]
[1724203766248,0.00821,59158.0,59149.0,0.1074]
[1724203766671,0.00958806,59157.0,59152.0,0.004]
[1724203767090,0.00958806,59157.0,59152.0,0.3017]
[1724203767304,0.00958806,59157.0,59152.0,0.2977]
[1724203767713,0.00958806,59157.0,59147.0,0.16029995]
[1724203767923,0.0818,59155.0,59147.0,0.1]
[1724203768372,0.0818,59155.0,59152.0,0.001]
[1724203768781,0.00959514,59154.0,59152.0,0.001]
[1724203769695,0.00959514,59154.0,59148.0,0.1099]
[1724203769908,0.00821,59158.0,59148.0,0.1099]
[1724203770094,0.00959372,59153.0,59148.0,0.1099]
[1724203770298,0.00821,59158.0,59149.0,0.00338092]
[1724203770699,0.00959344,59157.0,59149.0,0.00338092]
[1724203773311,0.00959344,59157.0,59149.0,0.00438092]
[1724203773874,0.00959344,59157.0,59149.0,0.05659589]
[1724203774304,0.01041344,59157.0,59149.0,0.05659589]
[1724203775576,0.1029,59156.0,59149.0,0.00438092]
[1724203775784,0.1029,59156.0,59149.0,0.001]
[1724203776022,0.00960052,59155.0,59149.0,0.001]
[1724203776444,0.00960052,59155.0,59148.0,0.0033809]
[1724203776828,0.00960052,59155.0,59149.0,0.002]
[1724203777182,0.00960052,59155.0,59148.0,0.0033809]
[1724203777389,0.00960052,59155.0,59149.0,0.003]
[1724203777999,0.00960052,59155.0,59148.0,0.0033809]
[1724203779561,0.00960052,59155.0,59148.0,0.0063809]
[1724203780897,0.00960052,59155.0,59148.0,0.003]
[1724203781305,0.1904,59153.0,59148.0,0.003]
[1724203781509,0.1904,59151.0,59148.0,0.003]
[1724203781711,0.1904,59149.0,59148.0,0.003]
[1724203781934,0.24753154,59149.0,59148.0,0.003]
[1724203782122,0.32751351,59149.0,59148.0,0.003]
[1724203782279,0.22647949,59149.0,59148.0,0.003]
[1724203782482,0.33174106,59149.0,59148.0,0.003]
[1724203783074,0.14134106,59149.0,59134.0,0.4659051]
[1724203783382,0.0885,59146.0,59133.0,0.0009031]
[1724203783696,0.13128237,59145.0,59133.0,0.0009031]
[1724203783908,0.03607949,59144.0,59133.0,0.0009031]
[1724203784107,0.02648237,59143.0,59133.0,0.0009031]
[1724203784508,0.00959712,59142.0,59133.0,0.0009031]
[1724203784732,0.1048,59145.0,59133.0,0.0009031]
[1724203784927,0.03608477,59144.0,59133.0,0.0009031]
[1724203785152,0.00959712,59144.0,59133.0,0.0009031]
[1724203785526,0.00959712,59144.0,59133.0,0.0119031]
[1724203785727,0.00959712,59144.0,59133.0,0.0009031]
[1724203786179,0.00959712,59144.0,59133.0,0.0149031]
[1724203786388,0.02988683,59144.0,59133.0,0.0149031]
[1724203786586,0.02988683,59144.0,59133.0,0.0049031]
[1724203786810,0.02451704,59144.0,59133.0,0.0009031]
[1724203787106,0.1048,59145.0,59134.0,0.11268187]
[1724203787322,0.1048,59145.0,59135.0,0.0878]
[1724203787522,0.1048,59145.0,59136.0,0.00338164]
[1724203788293,0.0885,59146.0,59137.0,0.2977]
[1724203788513,0.0862,59152.0,59139.0,0.1093]
[1724203788694,0.00959712,59151.0,59139.0,0.1093]
[1724203789733,0.00959712,59151.0,59139.0,0.1133]
[1724203791114,0.00959712,59151.0,59139.0,0.1103]
[1724203791321,0.01917683,59151.0,59139.0,0.1136814]
[1724203791538,0.01917683,59151.0,59139.0,0.1216814]
[1724203791742,0.01917683,59151.0,59139.0,0.1103]
[1724203791943,0.00959712,59151.0,59139.0,0.1136814]
[1724203792073,0.00959712,59151.0,59140.0,0.0836]
[1724203792280,0.00959712,59151.0,59142.0,0.1098]
[1724203792476,0.00959712,59151.0,59143.0,0.00338115]
[1724203794269,0.00959712,59151.0,59143.0,0.00638115]
[1724203794684,0.00959712,59151.0,59143.0,0.32495926]
[1724203794922,0.00959712,59151.0,59144.0,0.1051]
[1724203795133,0.09052,59157.0,59145.0,0.09158092]
[1724203795360,0.09052,59157.0,59146.0,0.1068]
[1724203795556,0.0095585,59156.0,59147.0,0.00338091]
[1724203795780,0.0095585,59156.0,59147.0,0.154189]
[1724203796061,0.00082,59157.0,59147.0,0.154189]
[1724203797195,0.003,59156.0,59147.0,0.154189]
[1724203797569,0.00082,59157.0,59147.0,0.154189]
[1724203797951,0.00382,59157.0,59147.0,0.154189]
[1724203798153,0.00382,59157.0,59148.0,0.0352119]
[1724203798356,0.00382,59157.0,59149.0,0.00338062]
[1724203798979,0.00382,59157.0,59150.0,0.1106]
[1724203799223,0.00958611,59156.0,59151.0,0.00338062]
[1724203799384,0.00958611,59156.0,59155.0,0.33166]
[1724203799590,0.00082,59157.0,59155.0,0.37594706]
[1724203799800,0.00082,59157.0,59156.0,0.14456]
[1724203801105,0.00082,59157.0,59150.0,0.1053]
[1724203801348,0.00082,59157.0,59151.0,0.10338072]
[1724203801550,0.00082,59157.0,59156.0,0.014]
[1724203802311,0.00082,59157.0,59151.0,0.1]
[1724203802533,0.00082,59157.0,59150.0,0.1]
[1724203802958,0.00082,59157.0,59156.0,0.014]
[1724203803498,0.00082,59157.0,59151.0,0.01738068]
[1724203803499,0.00082,59157.0,59151.0,0.014]
[1724203803725,0.011414,59157.0,59151.0,0.014]
[1724203803907,0.1929,59156.0,59151.0,0.014]
[1724203804343,0.1929,59156.0,59147.0,0.03396]
[1724203804819,0.1929,59156.0,59151.0,0.013]
[1724203805671,0.1929,59156.0,59151.0,0.027]
[1724203805904,0.00082,59157.0,59152.0,0.1034]
[1724203806164,0.00082,59157.0,59152.0,0.10678073]
[1724203807058,0.00082,59157.0,59152.0,0.1615848]
[1724203807261,0.00082,59157.0,59152.0,0.10678073]
[1724203807708,0.00082,59157.0,59152.0,0.1034]
[1724203808561,0.00082,59157.0,59152.0,0.1304]
[1724203808562,0.00182,59157.0,59152.0,0.1304]
[1724203810032,0.00182,59157.0,59152.0,0.027]
[1724203810242,0.1125,59156.0,59152.0,0.027]
[1724203810452,0.00182,59157.0,59152.0,0.027]
[1724203811295,0.00082,59157.0,59152.0,0.014]
[1724203811499,0.00082,59157.0,59152.0,0.028]
[1724203812771,0.00082,59157.0,59152.0,0.014]
[1724203813185,0.00082,59157.0,59152.0,0.027]
[1724203816033,0.00082,59157.0,59153.0,0.11348078]
[1724203816233,0.00082,59157.0,59153.0,0.14122486]
[1724203816437,0.00082,59157.0,59154.0,0.0862]
[1724203816641,0.00082,59157.0,59155.0,0.00338043]
[1724203817443,0.00082,59157.0,59156.0,0.1131]
[1724203817661,0.00082,59157.0,59156.0,0.32422996]
[1724203817864,0.00082,59157.0,59156.0,0.39270218]
[1724203819164,0.00082,59157.0,59156.0,0.44331658]
[1724203819575,0.00082,59157.0,59156.0,0.32760996]
[1724203819785,0.00082,59157.0,59156.0,0.36156996]
[1724203819997,0.00082,59157.0,59156.0,0.38518996]
[1724203820202,0.00082,59157.0,59156.0,0.38326]
[1724203820415,0.00082,59157.0,59156.0,0.27106]
[1724203820650,0.00082,59157.0,59156.0,0.2371]
[1724203820847,0.00082,59157.0,59156.0,0.2241]
[1724203821278,0.00082,59157.0,59153.0,0.03391]
[1724203821480,0.00082,59157.0,59156.0,0.014]
[1724203821720,0.00082,59157.0,59156.0,0.028]
[1724203821966,0.00082,59157.0,59156.0,0.014]
[1724203821967,0.0104502,59157.0,59156.0,0.014]
[1724203822175,0.0104502,59157.0,59156.0,0.028]
[1724203822605,0.0104502,59157.0,59156.0,0.014]
[1724203823026,0.0104502,59157.0,59156.0,0.028]
[1724203823256,0.0104502,59157.0,59156.0,0.014]
[1724203823485,0.0114502,59157.0,59156.0,0.014]
[1724203824088,0.0104502,59157.0,59156.0,0.014]
[1724203824239,0.0104502,59157.0,59149.0,0.1]
[1724203824648,0.00082,59157.0,59156.0,0.014]
[1724203824848,0.00182,59157.0,59156.0,0.008]
[1724203825331,0.00182,59157.0,59156.0,0.022]
[1724203825332,0.01146017,59157.0,59156.0,0.022]
[1724203825644,0.11706017,59157.0,59156.0,0.008]
[1724203825823,0.11706017,59157.0,59156.0,0.022]
[1724203826260,0.11706017,59157.0,59156.0,0.008]
[1724203826489,0.01046017,59157.0,59150.0,0.00338081]
[1724203826693,0.01146017,59157.0,59149.0,0.113]
[1724203826908,0.00182,59157.0,59149.0,0.113]
[1724203827317,0.00082,59157.0,59149.0,0.1]
[1724203827533,0.00082,59157.0,59156.0,0.014]
[1724203827758,0.00182,59157.0,59156.0,0.023]
[1724203827981,0.00182,59157.0,59156.0,0.009]
[1724203827982,0.01145666,59157.0,59156.0,0.009]
[1724203828198,0.01045666,59157.0,59149.0,0.114]
[1724203828602,0.00082,59157.0,59149.0,0.1]
[1724203828804,0.00082,59157.0,59156.0,0.014]
[1724203829222,0.01045666,59157.0,59149.0,0.1]
[1724203829644,0.1939,59156.0,59149.0,0.01]
[1724203830062,0.1939,59156.0,59144.0,0.10020353]
[1724203830285,0.00962198,59155.0,59144.0,0.10020353]
[1724203830490,0.215134,59156.0,59144.0,0.10020353]
[1724203830691,0.215134,59156.0,59144.0,0.13411353]
[1724203831103,0.215134,59156.0,59149.0,0.011]
[1724203831307,0.1949,59156.0,59149.0,0.025]
[1724203831512,0.00962198,59155.0,59149.0,0.011]
[1724203832568,0.00962198,59155.0,59149.0,0.014]
[1724203832773,0.00962198,59155.0,59146.0,0.03391]
[1724203833128,0.1949,59156.0,59149.0,0.014]
[1724203833342,0.00962198,59155.0,59149.0,0.014]
[1724203833914,0.01062198,59155.0,59149.0,0.026]
[1724203834300,0.02558131,59154.0,59149.0,0.026]
[1724203834497,0.1066,59153.0,59149.0,0.012]
[1724203834835,0.00960458,59152.0,59149.0,0.012]
[1724203835492,0.00960458,59152.0,59149.0,0.026]
[1724203835694,0.0823,59151.0,59149.0,0.014]
[1724203835894,0.0823,59151.0,59144.0,0.00020353]
[1724203835895,0.0823,59149.0,59144.0,0.00020353]
[1724203836106,0.0895,59147.0,59144.0,0.00020353]
[1724203836301,0.111,59146.0,59144.0,0.00020353]
[1724203836521,0.12058937,59146.0,59144.0,0.00020353]
[1724203837855,0.12481641,59146.0,59144.0,0.00020353]
[1724203838257,0.1874,59145.0,59144.0,0.00020353]
[1724203838661,0.2138873,59145.0,59144.0,0.00020353]
[1724203838864,0.22347667,59145.0,59144.0,0.01020353]
[1724203839679,0.22347667,59145.0,59144.0,0.00020353]
[1724203840093,0.22347667,59145.0,59144.0,0.00120353]
[1724203840533,0.22347667,59145.0,59144.0,0.00020353]
[1724203840733,0.1047,59144.0,59134.0,0.0009031]
[1724203840944,0.10892753,59143.0,59134.0,0.0009031]
[1724203841160,0.11840729,59143.0,59134.0,0.0009031]
[1724203841567,0.0825,59142.0,59134.0,0.0009031]
[1724203841789,0.11142753,59141.0,59134.0,0.0009031]
[1724203842019,0.11667976,59141.0,59134.0,0.0009031]
[1724203842222,0.11667976,59141.0,59135.0,0.00338203]
[1724203842223,0.00947976,59141.0,59135.0,0.00338203]
[1724203842425,0.00947976,59141.0,59135.0,0.00338169]
[1724203842630,0.00947976,59141.0,59135.0,0.02487979]
[1724203842831,0.002,59145.0,59134.0,0.3894031]
[1724203843043,0.00947976,59140.0,59135.0,0.1124]
[1724203843207,0.1031,59145.0,59135.0,0.1124]
[1724203843412,0.00947976,59139.0,59135.0,0.1124]
[1724203843618,0.1031,59145.0,59135.0,0.1124]
[1724203843811,0.00947976,59138.0,59135.0,0.1124]
[1724203844388,0.1041,59145.0,59135.0,0.1124]
[1724203844616,0.12303,59145.0,59135.0,0.1124]
[1724203844819,0.001,59141.0,59134.0,0.0159031]
[1724203845023,0.00947976,59144.0,59134.0,0.0079031]
[1724203845244,0.0259981,59144.0,59134.0,0.0079031]
[1724203845453,0.0259981,59144.0,59135.0,0.009]
[1724203845454,0.1135,59137.0,59135.0,0.009]
[1724203845659,0.1135,59137.0,59134.0,0.0009031]
[1724203845881,0.1135,59137.0,59135.0,0.007]
[1724203846087,0.00947976,59136.0,59135.0,0.007]
[1724203846287,0.00947976,59136.0,59134.0,0.0009031]
[1724203846689,0.00947976,59136.0,59135.0,0.009]
[1724203848002,0.01047976,59136.0,59135.0,0.009]
[1724203848209,0.01047976,59136.0,59134.0,0.0149031]
[1724203848429,0.01147976,59136.0,59135.0,0.009]
[1724203849094,0.01047976,59136.0,59135.0,0.009]
[1724203849505,0.01147976,59136.0,59135.0,0.019]
[1724203849721,0.01247976,59136.0,59135.0,0.028]
[1724203849923,0.10979774,59136.0,59134.0,0.0009031]
[1724203850132,0.09637976,59136.0,59134.0,0.0009031]
[1724203850357,0.09737976,59136.0,59135.0,0.01]
[1724203850763,0.09737976,59136.0,59135.0,0.855522]
[1724203850970,0.09637976,59136.0,59135.0,0.845522]
[1724203851386,0.0869,59136.0,59135.0,0.845522]
[1724203851821,0.0866,59142.0,59135.0,0.96407752]
[1724203852034,0.169079,59144.0,59135.0,0.930222]
[1724203852272,0.00947889,59141.0,59135.0,0.930222]
[1724203852482,0.001,59136.0,59135.0,0.930222]
[1724203852719,0.002,59136.0,59135.0,0.930222]
[1724203852902,0.001,59136.0,59135.0,0.930222]
[1724203853113,0.169079,59144.0,59135.0,0.930222]
[1724203853325,0.170079,59144.0,59135.0,0.848522]
[1724203853558,0.00947889,59143.0,59135.0,0.848522]
[1724203853766,0.1048,59142.0,59135.0,0.845522]
[1724203853975,0.001,59136.0,59135.0,0.859522]
[1724203854406,0.0876,59136.0,59135.0,0.859522]
[1724203855028,0.191,59136.0,59135.0,0.866522]
[1724203856105,0.19,59136.0,59135.0,0.852522]
[1724203856311,0.19,59136.0,59135.0,0.860522]
[1724203856772,0.19,59136.0,59135.0,0.852522]
[1724203857159,0.19,59136.0,59135.0,0.866522]
[1724203857160,0.191,59136.0,59135.0,0.866522]
[1724203858650,0.191,59136.0,59135.0,0.8674251]
[1724203858861,0.002,59136.0,59135.0,0.8674251]
[1724203860142,0.002,59136.0,59135.0,0.0219031]
[1724203860812,0.02225277,59136.0,59135.0,0.0219031]
[1724203861020,0.12407649,59136.0,59135.0,0.0219031]
[1724203864695,0.21030435,59136.0,59135.0,0.0219031]
[1724203864918,0.2367967,59136.0,59135.0,0.0219031]
[1724203865801,0.2357967,59136.0,59135.0,0.0079031]
[1724203866022,0.26347637,59136.0,59135.0,0.0009031]
[1724203866224,0.26347637,59136.0,59135.0,0.0019031]
[1724203866649,0.25847637,59136.0,59135.0,0.0019031]
[1724203867282,0.26247637,59136.0,59135.0,0.0019031]
[1724203868110,0.26247637,59136.0,59135.0,0.0009031]
[1724203868527,0.26347637,59136.0,59135.0,0.0009031]
[1724203868736,0.38447714,59136.0,59135.0,0.0009031]
[1724203868940,0.38747714,59136.0,59135.0,0.0009031]
[1724203869149,0.46487566,59136.0,59135.0,0.0009031]
[1724203869328,0.47720297,59136.0,59135.0,0.0009031]
[1724203869531,0.47917286,59136.0,59135.0,0.0009031]
[1724203869775,0.202,59135.0,59133.0,0.0009031]
[1724203869973,0.98665314,59134.0,59133.0,0.0009031]
[1724203870189,1.02319656,59134.0,59133.0,0.0009031]
[1724203870402,0.6927,59124.0,59123.0,0.000902]
[1724203870614,0.91486235,59124.0,59123.0,0.000902]
[1724203871031,0.92547648,59124.0,59123.0,0.000902]
[1724203871234,0.92747648,59124.0,59123.0,0.000902]
[1724203871647,0.53710648,59124.0,59123.0,0.001902]
[1724203872468,0.54610648,59124.0,59123.0,0.001902]
[1724203872892,0.54710648,59124.0,59123.0,0.001902]
[1724203873102,0.57010648,59124.0,59123.0,0.001902]
[1724203873307,0.63051713,59124.0,59123.0,0.001902]
[1724203874794,0.92821713,59124.0,59123.0,0.001902]
[1724203876577,0.90521713,59124.0,59123.0,0.001902]
[1724203876773,0.60751713,59124.0,59123.0,0.001902]
[1724203877392,0.60651713,59124.0,59123.0,0.001902]